bitfinex/quotes_SOLUSD_20250815
["timestamp","ask_amount","ask_price","bid_price","bid_amount"]
[1755277892053,3.99474279,184.48,184.46,0.03]
[1755277892288,5.42093565,184.47,184.46,0.03]
[1755277892456,10.11567844,184.47,184.46,0.03]
[1755277892764,34.05750559,184.47,184.46,0.03]
[1755277892927,13.70870571,184.47,184.42,8.83561158]
[1755277893129,0.7,184.47,184.45,8.83561158]
[1755277893327,0.7,184.47,184.35,18.98539503]
[1755277893328,0.7,184.46,184.36,0.06]
[1755277893526,3.98895356,184.45,184.42,8.83561158]
[1755277893749,47.2266065,184.49,184.44,8.83561158]
[1755277893949,4.6897658,184.48,184.45,8.83561158]
[1755277894126,4.68992075,184.47,184.44,8.83561158]
[1755277894333,0.7,184.47,184.44,8.83561158]
[1755277894667,45.13951115,184.52,184.46,8.83561158]
[1755277894963,3.9887571,184.51,184.48,8.83561158]
[1755277895262,0.7,184.5,184.41,0.06]
[1755277895431,0.7,184.5,184.46,8.83561158]
[1755277895633,0.7,184.5,184.41,0.06]
[1755277895634,1.2,184.55,184.49,8.83561158]
[1755277895833,3.98962635,184.54,184.47,0.06]
[1755277896241,0.7,184.53,184.5,8.83561158]
[1755277896742,0.7,184.52,184.45,5.42152344]
[1755277896947,0.7,184.52,184.44,5.42174345]
[1755277897151,12.82402356,184.51,184.46,8.83561158]
[1755277897346,4.68841198,184.5,184.47,8.83561158]
[1755277897551,0.7,184.49,184.47,8.83561158]
[1755277897748,0.7,184.48,184.45,8.83561158]
[1755277897947,0.7,184.48,184.41,0.06]
[1755277898372,3.58858103,184.53,184.46,8.83561158]
[1755277898539,54.653414,184.54,184.4,58.78047722]
[1755277898540,3.98763556,184.52,184.51,8.83561158]
[1755277898745,0.7,184.54,184.51,8.83561158]
[1755277898947,6.11896111,184.54,184.51,8.83561158]
[1755277899175,4.68655981,184.53,184.43,26.06]
[1755277899377,0.7,184.53,184.43,26.06]
[1755277899678,3.98744307,184.52,184.49,8.83561158]
[1755277899871,15.10621557,184.5,184.4,45.28299349]
[1755277900048,13.52305465,184.49,184.44,8.83561158]
[1755277900258,0.7,184.49,184.46,8.83561158]
[1755277900774,5.42026663,184.5,184.44,5.42180443]
[1755277900775,5.42026663,184.5,184.47,8.83561158]
[1755277900975,6.12026663,184.5,184.43,5.42205135]
[1755277901178,6.12026663,184.5,184.46,8.83561158]
[1755277902049,3.9877708,184.49,184.42,0.06]
[1755277902461,3.9877708,184.49,184.46,8.83561158]
[1755277902652,0.7,184.49,184.46,8.83561158]
[1755277902971,0.7,184.49,184.42,0.06]
[1755277903164,0.7,184.49,184.46,8.83561158]
[1755277903562,6.12035018,184.49,184.43,5.42206924]
[1755277903764,6.12035018,184.49,184.46,8.83561158]
[1755277903983,0.7,184.48,184.45,8.83561158]
[1755277904190,0.7,184.47,184.42,0.03]
[1755277904482,12.82384872,184.46,184.42,0.03]
[1755277904646,4.68823714,184.45,184.42,0.03]
[1755277904842,0.7,184.45,184.42,0.03]
[1755277905044,6.12202602,184.44,184.42,0.03]
[1755277905489,13.50453868,184.43,184.42,0.03]
[1755277905844,0.68,184.46,184.42,0.03]
[1755277906155,0.06,184.49,184.42,0.03]
[1755277906343,19.77557602,184.48,184.42,0.03]
[1755277906540,3.98936045,184.47,184.44,8.83561158]
[1755277906757,3.98936045,184.47,184.42,0.03]
[1755277906947,0.06,184.49,184.42,0.03]
[1755277906948,0.06,184.49,184.46,8.83561158]
[1755277907159,0.06,184.49,184.42,0.03]
[1755277907349,8.83561158,184.47,184.42,0.03]
[1755277907551,4.67053196,184.46,184.42,0.03]
[1755277907753,0.74,184.49,184.45,8.83561158]
[1755277907961,0.74,184.49,184.42,0.03]
[1755277907962,3.99129162,184.48,184.42,0.03]
[1755277908167,0.74,184.49,184.42,0.03]
[1755277908350,0.74,184.49,184.46,8.83561158]
[1755277908549,8.83561158,184.47,184.42,0.03]
[1755277908874,4.67226067,184.46,184.42,8.86561158]
[1755277909175,32.1604032,184.49,184.42,0.03]
[1755277909380,4.67110125,184.48,184.43,8.83561158]
[1755277909543,40.31601478,184.49,184.45,8.83561158]
[1755277909544,0.68,184.47,184.45,8.83561158]
[1755277909748,0.06,184.49,184.46,8.83561158]
[1755277909949,0.06,184.49,184.47,8.83561158]
[1755277910149,0.06,184.49,184.48,8.83561158]
[1755277910379,0.06,184.49,184.45,0.06]
[1755277910547,0.06,184.49,184.42,0.09]
[1755277910871,0.06,184.49,184.48,8.83561158]
[1755277911246,0.06,184.49,184.48,14.25625338]
[1755277911661,0.06,184.49,184.43,39.88]
[1755277911860,0.06,184.49,184.48,8.83561158]
[1755277913370,0.06,184.49,184.48,14.25625338]
[1755277913546,0.06,184.49,184.48,14.31625338]
[1755277914459,0.06,184.53,184.48,27.86785788]
[1755277914673,0.06,184.53,184.52,8.83561158]
[1755277917864,0.74,184.53,184.52,8.83561158]
[1755277918265,0.74,184.53,184.45,10.83957106]
[1755277918578,0.74,184.53,184.48,8.83561158]
[1755277918783,4.33240702,184.53,184.48,8.83561158]
[1755277919095,0.68,184.52,184.43,5.42211137]
[1755277919283,6.09964172,184.52,184.47,8.83561158]
[1755277919469,0.68,184.51,184.47,8.83561158]
[1755277919794,0.68,184.5,184.43,40.49]
[1755277920087,0.68,184.5,184.46,8.83561158]
[1755277920288,3.59240702,184.5,184.49,8.83561158]
[1755277920491,3.59240702,184.52,184.49,8.83561158]
[1755277920782,0.74,184.53,184.5,0.71]
[1755277920783,0.06,184.53,184.5,0.71]
[1755277921385,0.06,184.53,184.5,6.12988957]
[1755277921570,0.06,184.53,184.47,6.13093565]
[1755277921772,0.06,184.53,184.52,8.83561158]
[1755277921990,3.67760501,184.53,184.52,8.83561158]
[1755277922288,0.06,184.53,184.52,8.83561158]
[1755277922677,0.06,184.53,184.52,9.54561158]
[1755277922873,0.06,184.53,184.52,8.83561158]
[1755277923064,0.06,184.53,184.52,9.54561158]
[1755277923489,0.06,184.53,184.52,14.9650783]
[1755277925973,0.06,184.57,184.56,8.83561158]
[1755277926180,134.58,184.65,184.56,48.57561158]
[1755277926377,3.62359749,184.64,184.6,8.83561158]
[1755277926580,0.68,184.67,184.63,8.83561158]
[1755277926776,0.68,184.67,184.66,8.83561158]
[1755277926987,4.30392722,184.67,184.61,39.74]
[1755277927183,3.62477961,184.66,184.65,8.83561158]
[1755277927500,4.30151088,184.66,184.65,8.83561158]
[1755277927701,13.13712246,184.66,184.6,8.83561158]
[1755277927876,4.30151088,184.65,184.6,8.83561158]
[1755277928076,4.30151088,184.64,184.6,8.83561158]
[1755277928275,5.41536568,184.66,184.58,39.76]
[1755277928276,4.30151088,184.63,184.58,39.76]
[1755277928501,4.30151088,184.62,184.57,8.83561158]
[1755277928700,8.3231542,184.61,184.59,8.83561158]
[1755277928874,0.68,184.6,184.59,8.83561158]
[1755277929372,0.68,184.6,184.54,45.19887789]
[1755277929574,6.09711809,184.6,184.58,8.83561158]
[1755277929904,9.71831528,184.62,184.59,8.83561158]
[1755277930106,9.71831528,184.62,184.54,39.78]
[1755277930107,4.6988193,184.61,184.6,8.83561158]
[1755277930404,0.68,184.63,184.6,8.83561158]
[1755277930699,4.01831126,184.62,184.57,0.71]
[1755277930888,0.68,184.65,184.61,8.83561158]
[1755277931198,0.68,184.65,184.58,0.71]
[1755277931506,4.01596149,184.64,184.55,5.41849755]
[1755277932000,0.68,184.63,184.55,5.41849755]
[1755277932206,0.68,184.63,184.62,8.83561158]
[1755277932409,5.41575989,184.65,184.62,8.83561158]
[1755277932578,5.41575989,184.65,184.64,8.83561158]
[1755277932579,0.68,184.65,184.64,8.83561158]
[1755277932996,0.68,184.65,184.63,8.83561158]
[1755277933199,0.68,184.65,184.64,8.83561158]
[1755277933583,21.16438842,184.68,184.64,8.83561158]
[1755277933904,21.16438842,184.68,184.67,8.83561158]
[1755277934500,21.16438842,184.68,184.67,9.54561158]
[1755277934806,21.16438842,184.68,184.67,8.83561158]
[1755277935715,21.16438842,184.68,184.67,14.25067629]
[1755277935894,21.16438842,184.68,184.67,14.94067629]
[1755277936095,0.06,184.72,184.67,28.47833806]
[1755277936313,0.06,184.72,184.71,8.83561158]
[1755277936686,0.76,184.72,184.71,8.83561158]
[1755277937408,0.06,184.72,184.71,8.83561158]
[1755277937600,0.06,184.72,184.71,14.24950362]
[1755277937798,0.06,184.72,184.69,5.41425088]
[1755277938006,0.06,184.72,184.71,8.83561158]
[1755277938386,0.76,184.72,184.67,5.41482868]
[1755277938589,0.76,184.72,184.66,5.41529309]
[1755277938590,0.06,184.72,184.66,5.41529309]
[1755277938786,0.06,184.72,184.63,5.41623788]
[1755277938997,0.76,184.72,184.69,8.83561158]
[1755277939398,0.06,184.72,184.69,8.83561158]
[1755277939599,0.7,184.71,184.69,8.83561158]
[1755277940004,0.06,184.72,184.7,8.83561158]
[1755277940319,0.06,184.72,184.65,0.69]
[1755277940320,0.06,184.72,184.71,8.83561158]
[1755277940497,5.47359896,184.72,184.66,5.41530948]
[1755277940694,5.47359896,184.72,184.7,8.83561158]
[1755277940896,0.7,184.71,184.69,8.83561158]
[1755277941109,0.06,184.72,184.7,8.83561158]
[1755277941312,0.06,184.72,184.67,0.69]
[1755277941313,0.06,184.72,184.71,8.83561158]
[1755277941699,0.06,184.72,184.71,14.24950362]
[1755277942218,0.06,184.72,184.71,14.93950362]
[1755277945115,0.06,184.72,184.71,14.24950362]
[1755277946504,0.06,184.72,184.71,8.83561158]
[1755277946694,0.76,184.72,184.71,8.83561158]
[1755277947995,0.06,184.72,184.71,8.83561158]
[1755277948511,0.06,184.72,184.71,14.24950362]
[1755277948891,0.06,184.72,184.66,0.54153579]
[1755277949119,0.76,184.72,184.62,0.69]
[1755277949427,0.76,184.72,184.68,8.83561158]
[1755277949793,0.76,184.72,184.69,8.83561158]
[1755277950009,0.7,184.71,184.69,8.83561158]
[1755277950315,0.7,184.7,184.69,8.83561158]
[1755277950720,0.06,184.72,184.69,8.83561158]
[1755277950918,0.06,184.72,184.71,8.83561158]
[1755277952349,0.06,184.72,184.71,14.24950362]
[1755277954335,0.76,184.72,184.7,8.83561158]
[1755277954545,0.7,184.71,184.69,39.7]
[1755277954711,0.06,184.72,184.7,8.83561158]
[1755277954916,0.06,184.72,184.71,8.83561158]
[1755277955422,0.76,184.72,184.71,8.83561158]
[1755277955926,4.75796396,184.72,184.71,8.83561158]
[1755277956444,14.17137005,184.72,184.69,39.7]
[1755277956623,8.6980407,184.71,184.68,0.03]
[1755277956824,3.99796396,184.7,184.68,0.03]
[1755277957125,3.99796396,184.69,184.68,0.03]
[1755277957426,3.99796396,184.69,184.68,8.86561158]
[1755277957636,4.69796396,184.69,184.68,8.86561158]
[1755277958227,4.69796396,184.69,184.68,0.03]
[1755277958841,4.69796396,184.69,184.68,8.86561158]
[1755277959136,4.69796396,184.69,184.68,0.03]
[1755277959317,38.05913481,184.69,184.68,0.03]
[1755277959517,41.66218153,184.69,184.68,0.03]
[1755277960220,26.55596596,184.69,184.68,0.03]
[1755277960420,17.72035438,184.69,184.68,0.03]
[1755277960622,8.70282935,184.69,184.68,0.03]
[1755277960824,3.99796396,184.69,184.68,8.86561158]
[1755277961620,0.06,184.72,184.68,8.86561158]
[1755277961817,0.06,184.72,184.71,8.83561158]
[1755277962042,0.76,184.72,184.68,0.03]
[1755277962218,0.06,184.72,184.7,8.83561158]
[1755277962415,0.7,184.71,184.7,8.83561158]
[1755277962750,0.7,184.71,184.68,8.86561158]
[1755277962916,0.7,184.7,184.68,0.03]
[1755277963119,12.84202367,184.69,184.68,0.03]
[1755277963426,16.44769993,184.69,184.68,0.03]
[1755277963630,0.7,184.69,184.68,0.03]
[1755277964246,4.71360203,184.69,184.68,0.03]
[1755277964940,3.60843069,184.71,184.68,8.86561158]
[1755277965139,9.08210316,184.72,184.69,8.83561158]
[1755277965322,3.66843069,184.72,184.7,8.83561158]
[1755277965923,4.32843069,184.72,184.7,8.83561158]
[1755277966163,0.66,184.71,184.68,0.03]
[1755277966541,0.66,184.7,184.68,0.03]
[1755277966924,0.66,184.69,184.68,0.03]
[1755277967224,3.61493503,184.7,184.68,0.03]
[1755277967425,3.61493503,184.71,184.68,0.03]
[1755277967624,9.68884244,184.71,184.68,0.03]
[1755277967854,8.29722788,184.7,184.68,0.03]
[1755277968026,4.27493503,184.7,184.68,0.03]
[1755277968350,3.61493503,184.7,184.68,0.03]
[1755277968869,4.27493503,184.7,184.68,0.03]
[1755277969155,3.61493503,184.7,184.68,0.03]
[1755277969368,5.41390741,184.71,184.68,0.03]
[1755277969652,3.6252093,184.7,184.68,0.03]
[1755277970044,3.6252093,184.69,184.68,0.03]
[1755277970227,3.6252093,184.7,184.68,0.03]
[1755277970428,3.6252093,184.69,184.68,0.03]
[1755277970626,3.6252093,184.7,184.68,0.03]
[1755277970851,3.6252093,184.7,184.69,8.83561158]
[1755277971047,3.6252093,184.71,184.69,8.83561158]
[1755277971255,3.6252093,184.7,184.69,8.83561158]
[1755277971454,3.6252093,184.71,184.69,8.83561158]
[1755277971663,3.6252093,184.71,184.7,8.83561158]
[1755277972042,0.06,184.72,184.7,8.83561158]
[1755277972239,3.6852093,184.72,184.71,8.83561158]
[1755277972570,0.06,184.72,184.71,8.83561158]
[1755277972768,3.6852093,184.72,184.71,8.83561158]
[1755277972959,0.06,184.72,184.71,8.83561158]
[1755277973272,3.6852093,184.72,184.71,8.83561158]
[1755277973456,0.06,184.72,184.71,14.24950362]
[1755277973767,0.06,184.72,184.71,8.83561158]
[1755277974176,0.06,184.72,184.71,14.24950362]
[1755277975361,0.06,184.72,184.71,14.95950362]
[1755277977949,0.06,184.72,184.71,14.24950362]
[1755277978149,0.06,184.74,184.71,23.7951152]
[1755277978450,0.06,184.76,184.73,17.67122316]
[1755277978674,0.06,184.78,184.75,14.24833147]
[1755277978980,0.06,184.78,184.77,8.83561158]
[1755277979475,3.63683538,184.85,184.77,9.54561158]
[1755277979770,3.63683538,184.85,184.77,0.71]
[1755277979771,3.63683538,184.83,184.77,0.71]
[1755277979983,4.29683538,184.83,184.78,39.52]
[1755277980146,3.63683538,184.83,184.75,45.65451961]
[1755277980347,3.63683538,184.83,184.73,8.83561158]
[1755277980348,8.33551997,184.82,184.76,39.5]
[1755277980554,5.4118411,184.78,184.74,8.83561158]
[1755277980856,0.66,184.8,184.77,8.83561158]
[1755277981050,0.66,184.8,184.76,39.56]
[1755277981270,7.67424461,184.79,184.73,39.58]
[1755277981581,0.66,184.78,184.76,8.83561158]
[1755277982072,4.29500795,184.8,184.77,8.83561158]
[1755277982274,0.66,184.8,184.79,8.83561158]
[1755277982481,0.66,184.81,184.79,8.83561158]
[1755277982783,0.06,184.82,184.79,8.83561158]
[1755277982945,3.69500795,184.82,184.77,45.01206351]
[1755277983289,0.72,184.82,184.77,45.01206351]
[1755277983451,0.06,184.82,184.81,8.83561158]
[1755277983779,0.06,184.82,184.81,48.43561158]
[1755277984560,0.06,184.82,184.81,49.14561158]
[1755277984756,0.06,184.84,184.81,54.55657419]
[1755277984960,0.06,184.84,184.83,8.83561158]
[1755277985265,0.06,184.84,184.83,39.62]
[1755277985471,0.06,184.84,184.83,48.45561158]
[1755277985981,0.72,184.84,184.83,39.62]
[1755277986289,0.72,184.84,184.83,48.45561158]
[1755277986658,0.72,184.84,184.83,39.62]
[1755277987353,6.13008439,184.84,184.77,5.412134]
[1755277987574,0.66,184.83,184.81,8.83561158]
[1755277988091,0.06,184.84,184.82,8.83561158]
[1755277988388,0.66,184.83,184.82,8.83561158]
[1755277988587,0.66,184.83,184.81,8.83561158]
[1755277988787,5.41050505,184.83,184.8,8.83561158]
[1755277989089,0.66,184.83,184.81,8.83561158]
[1755277990070,0.06,184.84,184.82,8.83561158]
[1755277990368,0.06,184.84,184.83,8.83561158]
[1755277990563,0.06,184.84,184.79,0.71]
[1755277990764,0.06,184.84,184.82,8.83561158]
[1755277990970,0.66,184.83,184.81,8.83561158]
[1755277991261,0.06,184.84,184.82,8.83561158]
[1755277991464,0.72,184.84,184.82,8.83561158]
[1755277991865,0.72,184.84,184.81,8.83561158]
[1755277992074,6.13020259,184.84,184.81,8.83561158]
[1755277992389,0.66,184.83,184.78,45.03179148]
[1755277992583,0.66,184.82,184.81,8.83561158]
[1755277992890,0.66,184.82,184.8,8.83561158]
[1755277993186,0.66,184.81,184.79,8.83561158]
[1755277993390,6.13020259,184.84,184.8,8.83561158]
[1755277993571,6.13020259,184.84,184.78,39.62]
[1755277993769,0.66,184.83,184.8,8.83561158]
[1755277994888,0.66,184.83,184.78,45.0318097]
[1755277995184,0.66,184.83,184.8,8.83561158]
[1755277996500,5.47020259,184.84,184.8,8.83561158]
[1755277996671,6.13020259,184.84,184.8,8.83561158]
[1755277997197,0.06,184.84,184.83,8.83561158]
[1755277997893,0.06,184.84,184.83,9.48561158]
[1755277998103,0.06,184.84,184.83,14.89598868]
[1755277999478,0.06,184.86,184.83,15.43702639]
[1755277999688,0.06,184.86,184.85,8.83561158]
[1755278000092,0.06,184.86,184.85,54.3954033]
[1755278001291,0.06,184.86,184.85,53.7454033]
[1755278001599,0.06,184.86,184.85,39.5]
[1755278001889,0.06,184.86,184.85,53.7454033]
[1755278002490,0.06,184.86,184.85,54.3954033]
[1755278003891,0.06,184.86,184.85,54.93638247]
[1755278004270,0.06,184.86,184.85,63.77199405]
[1755278004599,0.06,184.87,184.85,63.77199405]
[1755278004800,0.06,184.87,184.86,18.32122316]
[1755278005616,0.06,184.87,184.86,8.83561158]
[1755278007084,0.06,184.87,184.86,48.23561158]
[1755278007428,0.06,184.87,184.86,54.29511066]
[1755278008402,0.06,184.87,184.86,53.64511066]
[1755278009113,0.06,184.87,184.86,54.29511066]
[1755278009285,0.06,184.87,184.86,63.13072224]
[1755278009912,0.06,184.87,184.86,54.29511066]
[1755278010715,0.06,184.87,184.86,44.80949908]
[1755278010917,0.06,184.87,184.86,53.64511066]
[1755278011320,0.72,184.87,184.86,48.23561158]
[1755278011894,0.72,184.87,184.86,48.15561158]
[1755278012587,0.06,184.87,184.86,48.15561158]
[1755278012894,0.06,184.87,184.86,53.56511066]
[1755278013518,0.06,184.87,184.86,48.15561158]
[1755278014016,0.72,184.87,184.86,48.15561158]
[1755278014894,0.06,184.87,184.86,48.15561158]
[1755278015092,0.06,184.87,184.86,53.56511066]
[1755278016790,0.06,184.87,184.86,54.21511066]
[1755278017012,0.06,184.87,184.86,63.05072224]
[1755278017189,0.06,184.87,184.86,56.38189966]
[1755278017390,0.06,184.87,184.86,54.21511066]
[1755278017832,0.06,184.87,184.86,56.38189966]
[1755278018109,1e-08,184.87,184.86,80.32372681]
[1755278018316,1e-08,184.87,184.86,80.86467671]
[1755278018490,1e-08,184.87,184.86,72.02906513]
[1755278019801,1e-08,184.87,184.86,56.27284956]
[1755278020125,1e-08,184.87,184.86,53.56511066]
[1755278020531,0.66000001,184.87,184.85,34.83561158]
[1755278020822,0.66000001,184.87,184.82,0.03]
[1755278020823,0.66,184.86,184.84,8.83561158]
[1755278021004,1e-08,184.87,184.85,39.28]
[1755278021202,1e-08,184.87,184.86,39.28]
[1755278021714,1e-08,184.87,184.86,48.11561158]
[1755278021917,1e-08,184.87,184.86,53.52511066]
[1755278022444,1e-08,184.87,184.86,54.17511066]
[1755278022600,1e-08,184.87,184.86,53.52511066]
[1755278022998,1e-08,184.87,184.86,54.17511066]
[1755278023208,1e-08,184.87,184.86,53.52511066]
[1755278023903,1e-08,184.87,184.86,5.40949908]
[1755278024239,1e-08,184.87,184.86,39.3]
[1755278024240,0.66000001,184.87,184.86,39.3]
[1755278024608,0.66000001,184.87,184.84,8.86561158]
[1755278024802,0.66000001,184.87,184.85,39.3]
[1755278026220,6.06922401,184.87,184.85,39.3]
[1755278026531,9.49561158,184.86,184.84,0.03]
[1755278026825,12.4642283,184.85,184.84,0.03]
[1755278027234,36.29432905,184.85,184.84,0.03]
[1755278027402,21.18811348,184.85,184.84,0.03]
[1755278027910,8.32055149,184.85,184.84,0.03]
[1755278028217,4.69193477,184.85,184.84,0.03]
[1755278028422,7.66055149,184.85,184.84,0.03]
[1755278028620,13.52754635,184.85,184.84,0.03]
[1755278028823,22.56595479,184.85,184.84,0.03]
[1755278029105,26.59948458,184.85,184.82,0.03]
[1755278029301,8.83561158,184.83,184.82,0.03]
[1755278029497,16.49616307,184.83,184.82,0.03]
[1755278029727,17.15616307,184.83,184.82,0.03]
[1755278030220,22.56654017,184.83,184.82,0.03]
[1755278030530,37.67275574,184.83,184.82,0.03]
[1755278032319,41.70529165,184.83,184.82,0.03]
[1755278032648,41.70413325,184.83,184.82,0.03]
[1755278032819,41.70420306,184.83,184.82,0.03]
[1755278033024,37.67275574,184.83,184.82,0.03]
[1755278033213,149.00621557,184.82,184.8,0.03]
[1755278033417,150.39616307,184.81,184.8,0.03]
[1755278033716,155.08606447,184.81,184.8,0.03]
[1755278034143,170.19228004,184.81,184.8,0.03]
[1755278034448,26.0,184.79,184.78,0.03]
[1755278034657,42.49616307,184.79,184.78,0.03]
[1755278035008,43.15616307,184.79,184.78,0.03]
[1755278035420,43.27879652,184.79,184.78,0.03]
[1755278035928,48.69034476,184.79,184.78,0.03]
[1755278036126,93.3131594,184.79,184.78,0.03]
[1755278037461,84.35491437,184.79,184.78,0.03]
[1755278037766,26.0,184.79,184.78,0.03]
[1755278038418,26.66,184.79,184.78,0.03]
[1755278038618,32.07154824,184.79,184.78,0.03]
[1755278039244,26.0,184.79,184.78,0.03]
[1755278039444,133.9,184.81,184.78,0.03]
[1755278039655,26.0,184.79,184.78,0.03]
[1755278040347,139.97105564,184.81,184.78,0.03]
[1755278040548,8.95824503,184.8,184.78,0.03]
[1755278040720,9.61824503,184.79,184.78,0.03]
[1755278041115,0.66,184.79,184.78,0.03]
[1755278041345,9.61824503,184.79,184.78,0.03]
[1755278041654,15.02979327,184.79,184.78,0.03]
[1755278042350,5.41154824,184.79,184.78,0.03]
[1755278043329,20.51754017,184.8,184.78,0.03]
[1755278043639,15.10621557,184.8,184.78,0.03]
[1755278044027,26.0,184.79,184.78,0.03]
[1755278045149,31.41154824,184.79,184.78,0.03]
[1755278045353,56.13600884,184.79,184.78,0.03]
[1755278045919,95.41600884,184.79,184.78,0.03]
[1755278046246,99.03022243,184.79,184.78,0.03]
[1755278046451,102.54505491,184.79,184.78,0.03]
[1755278046749,102.54297302,184.79,184.78,0.03]
[1755278046939,102.54202191,184.79,184.78,0.03]
[1755278047534,93.58377688,184.79,184.78,0.03]
[1755278047849,98.92989021,184.79,184.78,0.03]
[1755278048228,102.54153516,184.79,184.78,0.03]
[1755278048427,93.58329013,184.79,184.78,0.03]
[1755278048630,102.54153516,184.79,184.78,0.03]
[1755278050157,15.10621557,184.78,184.76,0.03]
[1755278050452,52.2721264,184.77,184.76,0.03]
[1755278050651,49.57347315,184.77,184.76,0.03]
[1755278051023,26.0,184.69,184.68,0.03]
[1755278052354,15.10621557,184.7,184.68,0.03]
[1755278052531,65.3,184.72,184.68,5.62959178]
[1755278052731,26.0,184.72,184.68,6.30959178]
[1755278052934,59.81927418,184.74,184.69,6.27959178]
[1755278053241,66.07886596,184.74,184.69,6.27959178]
[1755278053434,66.07886596,184.74,184.69,5.59959178]
[1755278053749,66.07886596,184.74,184.68,0.03]
[1755278053953,66.07886596,184.74,184.69,5.59959178]
[1755278054151,0.66,184.73,184.69,5.59959178]
[1755278054335,6.0735423,184.73,184.69,5.59959178]
[1755278054651,21.36580735,184.72,184.68,0.03]
[1755278054840,9.6087703,184.71,184.68,0.03]
[1755278055037,6.25959178,184.71,184.68,0.03]
[1755278055243,0.7,184.7,184.68,0.03]
[1755278055633,0.7,184.69,184.68,0.03]
[1755278056141,6.29959178,184.71,184.68,0.03]
[1755278056451,5.41418516,184.7,184.68,0.03]
[1755278057037,5.41396867,184.71,184.68,0.03]
[1755278057239,15.10621557,184.72,184.68,5.62959178]
[1755278057556,4.00792434,184.71,184.68,5.62959178]
[1755278057754,20.51959521,184.73,184.68,5.62959178]
[1755278057959,21.21959521,184.73,184.68,6.28959178]
[1755278058129,21.21959521,184.73,184.68,5.62959178]
[1755278058632,21.21959521,184.73,184.68,8.9899305]
[1755278058957,0.7,184.72,184.68,8.9899305]
[1755278059259,154.41959521,184.73,184.68,9.6499305]
[1755278059658,155.11959521,184.73,184.68,8.9899305]
[1755278059843,0.7,184.72,184.68,8.9899305]
[1755278060237,0.7,184.71,184.68,0.03]
[1755278060543,0.7,184.71,184.68,8.9899305]
[1755278060743,0.7,184.71,184.68,0.03]
[1755278061138,0.7,184.71,184.68,8.9899305]
[1755278061342,155.11961071,184.73,184.68,8.9899305]
[1755278061652,4.0081937,184.72,184.68,0.03]
[1755278061852,8.9599305,184.69,184.68,0.03]
[1755278062056,12.96769049,184.69,184.68,0.03]
[1755278062235,13.66769049,184.69,184.68,0.03]
[1755278062437,19.0821688,184.69,184.68,0.03]
[1755278063159,34.18838437,184.69,184.68,0.03]
[1755278063462,37.7975322,184.69,184.68,0.03]
[1755278065669,37.0975322,184.69,184.68,0.03]
[1755278066036,37.7975322,184.69,184.68,0.03]
[1755278066740,37.0975322,184.69,184.68,0.03]
[1755278066934,37.7975322,184.69,184.68,0.03]
[1755278067434,41.8136881,184.69,184.68,0.03]
[1755278068371,41.81698693,184.69,184.68,0.03]
[1755278069472,41.82889888,184.69,184.68,0.03]
[1755278070756,72.34199867,184.69,184.68,0.03]
[1755278072570,58.86896838,184.69,184.68,0.03]
[1755278072766,67.12889888,184.69,184.68,0.03]
[1755278073166,37.6482745,184.69,184.68,0.03]
[1755278073465,37.6482745,184.69,184.68,0.69]
[1755278073466,11.6482745,184.69,184.68,0.69]
[1755278073851,7.62997919,184.69,184.68,0.69]
[1755278074049,4.02083136,184.69,184.68,9.6499305]
[1755278074377,0.06,184.72,184.68,6.10477149]
[1755278074676,3.62857396,184.71,184.7,8.9599305]
[1755278074880,0.06,184.72,184.7,9.6199305]
[1755278075189,0.06,184.72,184.71,9.6199305]
[1755278075859,0.06,184.72,184.71,15.03382254]
[1755278076058,0.06,184.73,184.71,15.03382254]